[Event "Prague Open 2024"]
[Site "Prague"]
[Date "2024.01.06"]
[Round "3.17"]
[White "Koridze, Lile"]
[Black "Vavruska, Antonin"]
[Result "1-0"]
[ECO "A91"]
[WhiteElo "2152"]
[BlackElo "1878"]
[Annotator "RC"]
[PlyCount "93"]
[EventDate "2024.01.02"]
[EventType "swiss"]
[EventCountry "CZE"]
[SourceTitle "playchess.com"]
[Source "ChessBase"]
[SourceQuality "1"]
[TimeControl "40/5400+30:1800+30"]

1. d4 {[%emt 0:00:04]} e6 {[%emt 0:00:01]} 2. c4 {[%emt 0:00:08]} f5 {[%emt 0:00:09]} 3. g3 {[%emt 0:00:04]} Nf6 4. Bg2 {[%emt 0:00:06]} Be7 {[%emt 0:02:06]} 5. Nh3 O-O {[%emt 0:00:42]} 6. O-O {[%emt 0:00:40]} d6 {[%emt 0:00:49]} 7. Nc3 {[%emt 0:00:22]} Qe8 {[%emt 0:04:20]} 8. Qb3 {[%emt 0:01:24]} Kh8 {[%emt 0:05:34]} 9. Bxb7 {[%emt 0:00:58]} Bxb7 {[%emt 0:00:28]} 10. Qxb7 {[%emt 0:00:04]} Nbd7 {[%emt 0:09:01]} 11. Qg2 {[%emt 0:07:53]} e5 {[%emt 0:02:11]} 12. dxe5 {[%emt 0:01:03]} dxe5 {[%emt 0:00:20]} 13. Ng5 {[%emt 0:01:12]} Bc5 {[%emt 0:03:31]} 14. Nd5 {[%emt 0:04:25]} Rc8 {[%emt 0:03:57]} 15. Be3 {[%emt 0:04:08]} c6 {[%emt 0:06:52]} 16. Nxf6 {[%emt 0:01:09]} Rxf6 {[%emt 0:00:06]} 17. Bxc5 {[%emt 0:01:31]} Nxc5 {[%emt 0:00:01]} 18. Nf3 {[%emt 0:02:39]} f4 {[%emt 0:08:51]} 19. b4 {[%emt 0:03:05]} Nd7 {[%emt 0:02:09]} 20. Nd2 {[%emt 0:00:28]} Qf7 {[%emt 0:08:22]} 21. Ne4 {[%emt 0:02:01]} Rg6 {[%emt 0:00:32]} 22. Rad1 {[%emt 0:03:49]} Qe7 {[%emt 0:01:23]} 23. c5 {[%emt 0:01:39]} a5 {[%emt 0:11:29]} 24. Nd6 {[%emt 0:00:34]} Rc7 {[%emt 0:00:47]} 25. a3 {[%emt 0:02:25]} axb4 {[%emt 0:07:03]} 26. axb4 {[%emt 0:00:05]} Nf6 {[%emt 0:00:23]} 27. b5 {[%emt 0:06:24]} cxb5 {[%emt 0:05:41]} 28. Qa8+ Ng8 {[%emt 0:00:32]} 29. Ne4 {[%emt 0:06:46]} Ra7 {[%emt 0:04:12]} 30. Qd5 {[%emt 0:00:53]} h6 {[%emt 0:00:41]} 31. Qd3 {[%emt 0:02:00]} b4 {[%emt 0:03:37]} 32. Nd6 {[%emt 0:01:10]} e4 {[%emt 0:03:03]} 33. Nxe4 {[%emt 0:01:36]} Ra3 {[%emt 0:00:23]} 34. Qb1 {[%emt 0:00:45]} fxg3 {[%emt 0:03:09]} 35. Nxg3 {[%emt 0:06:12]} Rg4 {[%emt 0:00:49]} 36. Qf5 {[%emt 0:03:59]} Rg5 {[%emt 0:00:21]} 37. Qf4 {[%emt 0:01:02]} Qxc5 {[%emt 0:01:20]} 38. Rd8 Qe7 {[%emt 0:00:53]} 39. Qb8 {[%emt 0:01:35]} Qe6 {[%emt 0:01:05]} 40. Qxb4 Rb3 {[%emt 0:00:11]} 41. Qf4 {[%emt 0:33:11]} Rb7 {[%emt 0:32:54]} 42. Rc1 {[%emt 0:05:27]} Kh7 {[%emt 0:00:00]} 43. Qf3 {[%emt 0:00:00]} Re7 {[%emt 0:00:00]} 44. Rcc8 {[%emt 0:00:00]} Nf6 {[%emt 0:00:00]} 45. Rh8+ {[%emt 0:00:00]} Kg6 {[%emt 0:00:00]} 46. h4 {[%emt 0:00:00]} Rg4 {[%emt 0:00:00]} 47. h5+ {[%emt 0:00:00]} 1-0

[Event "Prague Open 2024"]
[Site "Prague"]
[Date "2024.01.06"]
[Round "3.18"]
[White "Rogers, Tim L"]
[Black "Wang, Yukun"]
[Result "0-1"]
[ECO "B22"]
[WhiteElo "1876"]
[BlackElo "2117"]
[Annotator "ChessBase"]
[PlyCount "146"]
[EventDate "2024.01.02"]
[EventType "swiss"]
[EventCountry "CZE"]
[SourceTitle "playchess.com"]
[Source "ChessBase"]
[SourceQuality "1"]
[TimeControl "40/5400+30:1800+30"]

1. e4 {[%emt 0:00:01]} c5 {[%emt 0:00:03]} 2. c3 {[%emt 0:00:04]} Nf6 {[%emt 0:00:16]} 3. e5 {[%emt 0:00:04]} Nd5 {[%emt 0:00:06]} 4. d4 {[%emt 0:00:04]} cxd4 {[%emt 0:00:09]} 5. cxd4 {[%emt 0:00:06]} e6 {[%emt 0:00:22]} 6. Nf3 {[%emt 0:00:04]} d6 {[%emt 0:00:08]} 7. Bc4 {[%emt 0:00:11]} Nc6 {[%emt 0:00:23]} 8. O-O {[%emt 0:00:13]} Be7 {[%emt 0:00:30]} 9. Qe2 {[%emt 0:00:10]} a6 {[%emt 0:03:03]} 10. Nc3 {[%emt 0:02:17]} dxe5 {[%emt 0:00:47]} 11. dxe5 {[%emt 0:00:13]} Nxc3 {[%emt 0:00:05]} 12. bxc3 {[%emt 0:00:09]} Qc7 {[%emt 0:00:51]} 13. Re1 {[%emt 0:00:41]} Bd7 {[%emt 0:01:57]} 14. Bd3 {[%emt 0:03:52]} Rc8 {[%emt 0:00:15]} 15. Bg5 {[%emt 0:07:19]} Bxg5 {[%emt 0:08:12]} 16. Nxg5 {[%emt 0:00:06]} h6 {[%emt 0:00:22]} 17. Nf3 {[%emt 0:00:37]} Na5 {[%emt 0:00:09]} 18. Rac1 {[%emt 0:00:36]} Nc4 {[%emt 0:08:20]} 19. Nd4 {[%emt 0:01:11]} b5 {[%emt 0:04:03]} 20. Qg4 {[%emt 0:00:56]} g6 {[%emt 0:02:38]} 21. Qf4 {[%emt 0:01:07]} Qd8 {[%emt 0:00:55]} 22. h3 {[%emt 0:27:21]} Qe7 {[%emt 0:05:08]} 23. Ne2 {[%emt 0:07:32]} Qg5 {[%emt 0:08:11]} 24. Qxg5 {[%emt 0:00:51]} hxg5 {[%emt 0:00:01]} 25. Ng3 {[%emt 0:00:57]} Ke7 {[%emt 0:01:07]} 26. Ne4 {[%emt 0:00:30]} Nxe5 {[%emt 0:00:34]} 27. Bb1 {[%emt 0:00:51]} g4 {[%emt 0:02:12]} 28. Ng3 {[%emt 0:01:33]} Rc5 {[%emt 0:00:50]} 29. Ne4 {[%emt 0:02:01]} Rd5 {[%emt 0:02:33]} 30. hxg4 {[%emt 0:01:59]} Nxg4 {[%emt 0:00:08]} 31. c4 {[%emt 0:00:06]} bxc4 {[%emt 0:11:44]} 32. Rxc4 {[%emt 0:00:08]} f5 {[%emt 0:06:24]} 33. Nc3 {[%emt 0:02:35]} Rd2 {[%emt 0:01:22]} 34. f3 {[%emt 0:00:45]} Nf6 {[%emt 0:00:39]} 35. Rd1 {[%emt 0:01:06]} Rxd1+ {[%emt 0:01:40]} 36. Nxd1 {[%emt 0:00:06]} Rb8 {[%emt 0:00:29]} 37. Bc2 {[%emt 0:00:41]} Nd5 {[%emt 0:01:49]} 38. Bb3 {[%emt 0:02:28]} a5 {[%emt 0:04:03]} 39. Nb2 {[%emt 0:01:53]} Rb5 {[%emt 0:10:45]} 40. Rh4 {[%emt 0:03:29]} Nb6 {[%emt 0:02:19]} 41. Rh7+ {[%emt 0:33:07]} Kf6 {[%emt 0:30:32]} 42. f4 {[%emt 0:12:42]} Be8 {[%emt 0:12:51]} 43. Ra7 {[%emt 0:01:56]} Rb4 {[%emt 0:00:00]} 44. Rxa5 {[%emt 0:00:00]} Rxf4 {[%emt 0:00:00]} 45. Ra6 {[%emt 0:00:00]} Rb4 {[%emt 0:00:00]} 46. Nd3 {[%emt 0:00:00]} Rb5 {[%emt 0:00:00]} 47. Nf4 {[%emt 0:00:00]} Bd7 {[%emt 0:00:00]} 48. Ne2 {[%emt 0:00:00]} Bc8 {[%emt 0:00:00]} 49. Ra7 {[%emt 0:00:00]} Rb4 {[%emt 0:00:00]} 50. Rc7 {[%emt 0:00:00]} Bd7 {[%emt 0:00:00]} 51. Nc3 {[%emt 0:00:00]} Ke5 {[%emt 0:00:00]} 52. Rb7 {[%emt 0:00:00]} g5 {[%emt 0:00:00]} 53. Kf2 {[%emt 0:00:00]} Bc6 {[%emt 0:00:00]} 54. Rc7 {[%emt 0:00:00]} Kd6 {[%emt 0:00:00]} 55. Rg7 {[%emt 0:00:00]} Rf4+ {[%emt 0:00:00]} 56. Ke3 {[%emt 0:00:00]} Rg4 {[%emt 0:00:00]} 57. Rg6 {[%emt 0:00:00]} Nc4+ {[%emt 0:01:49]} 58. Bxc4 {[%emt 0:00:00]} Rxc4 {[%emt 0:00:05]} 59. Ne2 {[%emt 0:00:00]} Re4+ {[%emt 0:02:59]} 60. Kf2 {[%emt 0:00:00]} g4 {[%emt 0:00:22]} 61. Ng3 {[%emt 0:00:00]} Re5 {[%emt 0:00:14]} 62. Nh5 {[%emt 0:00:00]} Be8 {[%emt 0:00:29]} 63. Rh6 {[%emt 0:00:00]} Bxh5 {[%emt 0:00:06]} 64. Rxh5 {[%emt 0:00:00]} Ra5 {[%emt 0:00:02]} 65. Rh8 {[%emt 0:00:30]} Rxa2+ {[%emt 0:00:06]} 66. Kg3 {[%emt 0:00:10]} Ke5 {[%emt 0:00:04]} 67. Rf8 {[%emt 0:00:19]} Ra3+ {[%emt 0:00:46]} 68. Kf2 {[%emt 0:00:15]} Kf4 {[%emt 0:00:28]} 69. Rb8 {[%emt 0:00:05]} g3+ {[%emt 0:00:34]} 70. Kf1 {[%emt 0:00:05]} Ra1+ {[%emt 0:00:11]} 71. Ke2 {[%emt 0:00:09]} e5 {[%emt 0:00:06]} 72. Rb2 {[%emt 0:00:21]} e4 {[%emt 0:00:35]} 73. Rc2 {[%emt 0:00:09]} Rg1 {[%emt 0:00:05]} 0-1

[Event "Prague Open 2024"]
[Site "Prague"]
[Date "2024.01.06"]
[Round "3.19"]
[White "Krstic, Andrija Marko"]
[Black "Berikkyzy Alanna"]
[Result "1-0"]
[ECO "E16"]
[WhiteElo "2113"]
[BlackElo "1545"]
[Annotator "RC"]
[PlyCount "117"]
[EventDate "2024.01.02"]
[EventType "swiss"]
[EventCountry "CZE"]
[SourceTitle "playchess.com"]
[Source "ChessBase"]
[SourceQuality "1"]
[TimeControl "40/5400+30:1800+30"]

1. d4 {[%emt 0:03:24]} Nf6 {[%emt 0:00:22]} 2. c4 {[%emt 0:00:07]} e6 {[%emt 0:00:43]} 3. Nf3 {[%emt 0:00:05]} Bb4+ {[%emt 0:01:23]} 4. Bd2 {[%emt 0:00:06]} Qe7 {[%emt 0:00:36]} 5. e3 {[%emt 0:00:04]} b6 {[%emt 0:03:33]} 6. Bd3 {[%emt 0:00:20]} Bb7 {[%emt 0:01:42]} 7. O-O {[%emt 0:00:09]} Bxd2 {[%emt 0:00:19]} 8. Nbxd2 {[%emt 0:00:06]} d6 {[%emt 0:00:06]} 9. e4 {[%emt 0:01:43]} e5 {[%emt 0:01:15]} 10. Re1 {[%emt 0:00:07]} O-O {[%emt 0:02:33]} 11. Nb1 {[%emt 0:01:27]} a5 {[%emt 0:03:04]} 12. Nc3 {[%emt 0:00:11]} Na6 {[%emt 0:01:56]} 13. Nd5 {[%emt 0:05:43]} Nxd5 {[%emt 0:05:05]} 14. exd5 {[%emt 0:01:29]} f6 {[%emt 0:00:44]} 15. Re3 {[%emt 0:20:44]} Qf7 {[%emt 0:06:00]} 16. dxe5 {[%emt 0:01:37]} dxe5 {[%emt 0:00:24]} 17. Nh4 {[%emt 0:00:53]} Bc8 {[%emt 0:00:35]} 18. Qe2 {[%emt 0:12:57]} Nc5 {[%emt 0:07:57]} 19. Bc2 {[%emt 0:00:29]} c6 {[%emt 0:07:21]} 20. dxc6 {[%emt 0:05:07]} Ra7 {[%emt 0:00:39]} 21. Nf5 {[%emt 0:03:07]} Be6 {[%emt 0:04:44]} 22. Rg3 {[%emt 0:06:07]} Qe8 {[%emt 0:04:51]} 23. Qf3 {[%emt 0:08:14]} Bxf5 {[%emt 0:11:33]} 24. Bxf5 {[%emt 0:01:44]} e4 {[%emt 0:00:40]} 25. Qg4 {[%emt 0:01:01]} g6 {[%emt 0:03:15]} 26. Rd1 {[%emt 0:04:27]} Kh8 {[%emt 0:10:26]} 27. Bd7 {[%emt 0:02:03]} Qf7 {[%emt 0:01:44]} 28. Rd5 {[%emt 0:03:13]} f5 {[%emt 0:02:12]} 29. Qf4 {[%emt 0:00:51]} Nxd7 {[%emt 0:00:57]} 30. cxd7 {[%emt 0:00:04]} Rxd7 {[%emt 0:00:26]} 31. Qe5+ {[%emt 0:00:17]} Kg8 {[%emt 0:00:46]} 32. Rb3 {[%emt 0:00:53]} Rxd5 {[%emt 0:02:03]} 33. cxd5 {[%emt 0:00:05]} Qf6 {[%emt 0:01:17]} 34. Qxf6 {[%emt 0:03:55]} Rxf6 {[%emt 0:00:06]} 35. f3 {[%emt 0:00:20]} exf3 {[%emt 0:00:33]} 36. gxf3 {[%emt 0:00:12]} Kf7 {[%emt 0:00:36]} 37. Kf2 {[%emt 0:01:08]} Rd6 {[%emt 0:00:17]} 38. Rb5 {[%emt 0:01:26]} g5 {[%emt 0:00:40]} 39. Ke3 {[%emt 0:01:44]} h5 {[%emt 0:00:40]} 40. Kd4 {[%emt 0:00:05]} Kf6 {[%emt 0:00:11]} 41. Rb3 {[%emt 0:30:11]} g4 {[%emt 0:32:10]} 42. f4 {[%emt 0:00:36]} h4 {[%emt 0:01:16]} 43. Rc3 {[%emt 0:00:23]} b5 {[%emt 0:03:39]} 44. Rc8 {[%emt 0:00:43]} Ra6 {[%emt 0:03:26]} 45. Kc5 {[%emt 0:00:45]} Ra7 {[%emt 0:01:46]} 46. d6 {[%emt 0:03:47]} g3 {[%emt 0:05:46]} 47. hxg3 {[%emt 0:00:21]} hxg3 {[%emt 0:00:06]} 48. Rg8 {[%emt 0:00:13]} Rg7 {[%emt 0:00:22]} 49. Rxg7 {[%emt 0:00:08]} Kxg7 {[%emt 0:00:37]} 50. d7 {[%emt 0:00:01]} g2 {[%emt 0:00:28]} 51. d8=Q {[%emt 0:00:06]} g1=Q+ {[%emt 0:00:06]} 52. Qd4+ {[%emt 0:00:04]} Qxd4+ {[%emt 0:00:07]} 53. Kxd4 {[%emt 0:00:06]} Kf6 {[%emt 0:00:54]} 54. Kd5 {[%emt 0:00:06]} b4 {[%emt 0:00:37]} 55. b3 {[%emt 0:00:03]} Kg6 {[%emt 0:00:35]} 56. Ke5 {[%emt 0:00:06]} Kg7 {[%emt 0:00:05]} 57. Kxf5 {[%emt 0:00:04]} Kf7 {[%emt 0:00:05]} 58. Ke5 {[%emt 0:00:07]} Ke7 {[%emt 0:00:05]} 59. Kd5 {[%emt 0:00:20]} 1-0

[Event "Prague Open 2024"]
[Site "Prague"]
[Date "2024.01.06"]
[Round "3.20"]
[White "Diachek, Andriy"]
[Black "Gomes, Mary Ann"]
[Result "1/2-1/2"]
[ECO "B52"]
[WhiteElo "1955"]
[BlackElo "2332"]
[Annotator "RC"]
[PlyCount "104"]
[EventDate "2024.01.02"]
[EventType "swiss"]
[EventCountry "CZE"]
[SourceTitle "playchess.com"]
[Source "ChessBase"]
[SourceQuality "1"]
[TimeControl "40/5400+30:1800+30"]

1. e4 {[%emt 0:00:02]} c5 {[%emt 0:00:16]} 2. Nf3 {[%emt 0:00:06]} d6 {[%emt 0:00:07]} 3. Bb5+ {[%emt 0:00:15]} Bd7 {[%emt 0:00:07]} 4. Bxd7+ {[%emt 0:00:10]} Nxd7 {[%emt 0:00:06]} 5. O-O {[%emt 0:00:15]} Ngf6 {[%emt 0:00:15]} 6. Qe2 {[%emt 0:00:31]} e6 {[%emt 0:00:41]} 7. b3 {[%emt 0:00:22]} Be7 {[%emt 0:00:09]} 8. Bb2 {[%emt 0:00:06]} O-O {[%emt 0:00:06]} 9. c4 {[%emt 0:00:12]} a6 {[%emt 0:02:36]} 10. d4 {[%emt 0:00:46]} cxd4 {[%emt 0:01:38]} 11. Nxd4 {[%emt 0:00:09]} Qa5 {[%emt 0:09:18]} 12. Nc3 {[%emt 0:02:23]} Qh5 {[%emt 0:00:40]} 13. Rfd1 {[%emt 0:07:27]} Qxe2 {[%emt 0:04:19]} 14. Ndxe2 {[%emt 0:00:29]} Rfd8 {[%emt 0:00:11]} 15. f3 {[%emt 0:01:42]} Rac8 {[%emt 0:00:26]} 16. Ba3 {[%emt 0:05:10]} Ne8 {[%emt 0:03:14]} 17. Rac1 {[%emt 0:02:15]} g5 {[%emt 0:03:06]} 18. Kf2 {[%emt 0:02:33]} Ne5 {[%emt 0:00:49]} 19. Rd2 {[%emt 0:10:50]} Rc7 {[%emt 0:05:03]} 20. Rcd1 {[%emt 0:02:54]} Rb8 {[%emt 0:00:49]} 21. Bb2 {[%emt 0:14:26]} b5 {[%emt 0:02:41]} 22. cxb5 {[%emt 0:00:25]} axb5 {[%emt 0:00:06]} 23. Nd4 {[%emt 0:03:08]} b4 {[%emt 0:00:30]} 24. Na4 {[%emt 0:01:27]} Nf6 {[%emt 0:11:12]} 25. Rc2 {[%emt 0:06:56]} Rxc2+ {[%emt 0:09:58]} 26. Nxc2 {[%emt 0:00:03]} Nfd7 {[%emt 0:00:11]} 27. Ke2 {[%emt 0:07:20]} Nc6 {[%emt 0:12:09]} 28. Ne3 {[%emt 0:01:28]} Nc5 {[%emt 0:06:51]} 29. Nxc5 {[%emt 0:04:14]} dxc5 {[%emt 0:00:08]} 30. Nc4 {[%emt 0:00:51]} Ra8 {[%emt 0:01:02]} 31. Ra1 {[%emt 0:01:39]} f6 {[%emt 0:01:04]} 32. Kd3 {[%emt 0:04:58]} Kf7 {[%emt 0:00:20]} 33. Kc2 {[%emt 0:03:06]} h5 {[%emt 0:01:19]} 34. Bc1 {[%emt 0:02:32]} f5 {[%emt 0:05:29]} 35. e5 {[%emt 0:04:42]} f4 {[%emt 0:05:11]} 36. a4 {[%emt 0:02:57]} bxa3 {[%emt 0:00:43]} 37. Bxa3 {[%emt 0:01:24]} Nd4+ {[%emt 0:01:21]} 38. Kc3 {[%emt 0:02:37]} Kg6 {[%emt 0:02:44]} 39. Nd6 {[%emt 0:02:06]} Nc6 {[%emt 0:04:04]} 40. Nc4 {[%emt 0:02:28]} Kf5 {[%emt 0:00:33]} 41. Re1 {[%emt 0:06:55]} Nd4 {[%emt 0:01:05]} 42. h3 {[%emt 0:04:14]} Rb8 {[%emt 0:03:15]} 43. Rb1 {[%emt 0:00:32]} Rd8 {[%emt 0:00:59]} 44. Ra1 {[%emt 0:02:03]} Rg8 {[%emt 0:11:55]} 45. Nd6+ {[%emt 0:03:46]} Bxd6 {[%emt 0:08:10]} 46. exd6 {[%emt 0:00:03]} Nb5+ {[%emt 0:00:05]} 47. Kc4 {[%emt 0:02:36]} Nxd6+ {[%emt 0:00:05]} 48. Kxc5 {[%emt 0:00:04]} Nf7 {[%emt 0:00:03]} 49. b4 {[%emt 0:02:15]} Rc8+ {[%emt 0:05:33]} 50. Kb6 {[%emt 0:03:03]} Nd6 {[%emt 0:00:40]} 51. b5 {[%emt 0:05:36]} Nxb5 {[%emt 0:00:14]} 52. Kxb5 {[%emt 0:00:05]} Rc2 {[%emt 0:00:04]} 1/2-1/2

[Event "Prague Open 2024"]
[Site "Prague"]
[Date "2024.01.07"]
[Round "4.1"]
[White "Agdestein, Simen"]
[Black "Keller, Peter"]
[Result "1-0"]
[ECO "A28"]
[WhiteElo "2568"]
[BlackElo "2289"]
[Annotator "TA"]
[PlyCount "83"]
[EventDate "2024.01.02"]
[EventType "swiss"]
[EventCountry "CZE"]
[SourceTitle "playchess.com"]
[Source "ChessBase"]
[SourceQuality "1"]
[TimeControl "40/5400+30:1800+30"]

{[%evp 13,83,0,2,-4,28,42,52,47,51,45,49,53,69,43,61,47,57,30,29,40,46,55,78,64,70,62,62,65,75,58,93,93,121,87,135,135,135,135,133,127,124,109,108,104,109,107,110,99,110,106,324,310,409,410,418,408,467,422,467,449,433,289,716,726,1097,1084,1181,1167,1146,1111,1250,1203]} 1. c4 {[%emt 0:00:52]} e5 {[%emt 0:00:09][%cal Be7e5,Be5e4][%mdl 32]} 2. Nc3 {[%emt 0:00:09]} Nf6 {[%emt 0:00:06]} 3. Nf3 {[%emt 0:00:07]} Nc6 {[%emt 0:00:05]} 4. e3 {[%emt 0:01:14]} Bb4 {[%emt 0:00:06]} 5. Nd5 {[%emt 0:00:35]} e4 {[%emt 0:00:07]} 6. Ng1 {[%emt 0:00:50]} O-O {[%emt 0:00:13]} 7. a3 {[%emt 0:08:57]} Bd6 {[%emt 0:00:07]} 8. Qc2 {[%emt 0:07:16] [#] A28: English Opening: Four Knights Variation.} Nxd5 $146 {[%emt 0:29:04]} (8... Re8 $5 {[%cal Rb7b6]}) ({Predecessor:} 8... Re8 9. Ne2 b5 10. Ng3 bxc4 11. Bxc4 Bb7 12. O-O Ne5 13. Nxf6+ Qxf6 14. b3 Qg5 15. Bb2 h5 16. f4 exf3 17. Qf5 Qxf5 18. Nxf5 fxg2 19. Rf2 Nxc4 20. bxc4 Bf8 21. Re1 Rab8 22. Bc3 f6 23. d3 Bxa3 24. e4 Bc5 {0-1 Flores,D (2517)-Nakamura,H (2775) Titled Tuesday intern op 02nd May Late blitz 2023 (4)}) 9. cxd5 {[%emt 0:00:48]} Ne7 {[%emt 0:00:11]} 10. Qxe4 {[%emt 0:01:54] White is slightly better.} c6 {[%emt 0:01:06]} 11. dxc6 {[%emt 0:07:50]} dxc6 {[%emt 0:01:39]} 12. Qc2 {[%emt 0:02:58]} (12. Bd3 Ng6 $15) 12... Nd5 {[%emt 0:06:25]} 13. Nf3 {[%emt 0:02:57]} Bg4 {[%emt 0:06:13]} 14. Be2 {[%emt 0:04:10]} (14. Bd3 $5 {[%cal Rd3h7]}) 14... Re8 {[%emt 0:07:36]} 15. h3 {[%emt 0:06:46]} (15. b3 {seems wilder.} Qe7 16. Nd4 c5 17. Nf5) 15... Bh5 {[%emt 0:02:19]} 16. d3 {[%emt 0:00:32]} Qe7 {[%emt 0:08:43]} 17. O-O {[%emt 0:06:20]} f5 {[%emt 0:00:39]} 18. Nd4 {[%emt 0:09:02]} Bg6 {[%emt 0:11:47]} 19. Bd2 {[%emt 0:03:28]} Rad8 {[%emt 0:05:04]} 20. Rfe1 {[%emt 0:06:16]} Bb8 {[%emt 0:00:53]} 21. Bf1 {[%emt 0:01:50]} Qd6 {[%emt 0:08:54][%csl Gb8][%cal Rd6h2] [#]} 22. g3 {[%emt 0:00:26]} Kh8 {[%emt 0:02:39]} 23. Ne2 {[%emt 0:09:37]} Bh5 {[%emt 0:02:55]} (23... Qd7 $142) 24. e4 $16 {[%emt 0:02:59]} Nf6 {[%emt 0:02:25][%cal Rf5e4]} 25. Bf4 {[%emt 0:00:29]} Qxd3 {[%emt 0:00:45]} 26. Qxd3 {[%emt 0:00:13]} Rxd3 {[%emt 0:00:04]} 27. Bxb8 {[%emt 0:00:06]} Rxb8 {[%emt 0:00:04]} 28. g4 {[%emt 0:09:03] Threatens to win with Nf4.} Bf7 {[%emt 0:01:57]} 29. gxf5 {[%emt 0:03:09]} Rd2 {[%emt 0:01:07]} (29... Nxe4 $2 30. Ng3 Nxg3 31. Bxd3 $18) 30. e5 {[%emt 0:00:06][%cal Be4e5,Be5e6][%mdl 32]} Nd5 {[%emt 0:00:13]} 31. b4 {[%emt 0:00:19][%cal Bb2b4,Bb4a5][%mdl 32]} a5 $2 {[%emt 0:00:11] Black cannot hold the game after this.} 32. bxa5 $18 {[%emt 0:01:26]} Bh5 {[%emt 0:01:42]} 33. Ng3 {[%emt 0:00:26][%cal Be2g3,Bg3h5,Bh5f6][%mdl 32]} Bf3 {[%emt 0:00:05]} 34. Rab1 {[%emt 0:00:47]} Nc7 {[%emt 0:00:01]} 35. e6 {[%emt 0:01:22]} ({Not} 35. a6 b5 36. a4 b4 $18) 35... Kg8 {[%emt 0:00:16]} 36. Re3 {[%emt 0:00:48]} ({Much less strong is} 36. a6 b5 37. a4 b4 $18) 36... Bd5 {[%emt 0:00:14]} 37. Nh5 {[%emt 0:00:37] Strongly threatening Rg3.} ({Don't do} 37. a6 b5 38. a4 Ra2 39. axb5 Rxa6 $18) 37... g6 $2 {[%emt 0:00:32]} (37... Ba2) 38. Nf6+ {[%emt 0:00:29] White is clearly winning.} Kg7 {[%emt 0:00:01]} 39. Nd7 {[%emt 0:00:15][%mdl 64] [#] Deflection} Rc8 {[%emt 0:00:18]} 40. Rxb7 {[%emt 0:00:46]} gxf5 {[%emt 0:00:11]} 41. Nb6 {[%emt 0:31:46]} c5 {[%emt 0:30:33]} 42. Ra7 {[%emt 0:00:00] Weighted Error Value: White=0.13 (very precise) /Black=0.25 (precise)} 1-0

[Event "Prague Open 2024"]
[Site "Prague"]
[Date "2024.01.07"]
[Round "4.2"]
[White "Tobak, Mikhail"]
[Black "Poetsch, Hagen"]
[Result "1-0"]
[ECO "B50"]
[WhiteElo "2288"]
[BlackElo "2471"]
[Annotator "TA"]
[PlyCount "99"]
[EventDate "2024.01.02"]
[EventType "swiss"]
[EventCountry "CZE"]
[SourceTitle "playchess.com"]
[Source "ChessBase"]
[SourceQuality "1"]
[TimeControl "40/5400+30:1800+30"]

{[%evp 12,99,6,-6,-9,-25,-10,-23,-15,-47,-32,-36,-29,-31,-14,-50,-33,-30,-22,-19,-20,-31,-20,-31,-20,-20,-18,-28,-12,-19,-20,-16,-14,-17,0,0,0,0,0,-12,4,7,39,21,18,19,89,81,67,70,83,84,129,143,141,141,151,131,138,130,132,129,112,99,265,256,329,263,29952,2226,29954,29956,29961,29959,29959,12835,9188,9969,5536,5047,29964,29959,29979,29980,29980,29981,29981,29982,29982,29983]} 1. e4 c5 2. Nf3 d6 3. c3 Nf6 4. Bd3 Nc6 5. Bc2 Bg4 6. d3 e6 7. Nbd2 d5 {B50: Sicilian: 2...d6, Miscellaneous.} 8. Qe2 Qc7 9. h3 Bh5 {Black has an edge.} 10. Nf1 Bd6 {[%cal Oc5c4]} 11. Ba4 Bxf3 12. Qxf3 O-O {[%cal Ob7b5] [#]} 13. Bxc6 $146 ({Predecessor:} 13. Bg5 Ne5 14. Qe2 c4 15. dxc4 Nxe4 16. cxd5 Nxc3 17. Qc2 Nxa4 18. Qxa4 Bb4+ 19. Nd2 {0-1 Erturan,Y (2281)-Castellanos Rodriguez,R (2449) Olympiad-36 Mallorca 2004 (3)}) 13... Qxc6 14. exd5 Qxd5 15. Qxd5 Nxd5 16. g3 Rad8 17. Ne3 Bc7 18. Ke2 Ne7 19. a4 f5 20. Nc4 f4 21. gxf4 Ng6 22. Rg1 Bxf4 23. Be3 Rd5 24. a5 Rh5 25. Rh1 Ne7 26. Nd2 Nc6 27. Ne4 Bxe3 28. fxe3 c4 29. dxc4 $16 {[%cal Bd3c4,Bc4c5][%mdl 32]} Nxa5 30. c5 $1 Nc6 31. b4 {[%cal Bb2b4,Bb4b5][%mdl 32]} a5 32. b5 ({Don't take} 32. bxa5 Ra8 $14) 32... Ne5 33. Rxa5 {Threatens to win with Ra7.} Nd7 34. Ra7 {[#] Black must now prevent c6.} Nxc5 35. Nxc5 Rxc5 36. Rxb7 {Strongly threatening Rd1.} Rxc3 {[%mdl 4096] Endgame KRR-KRR} 37. Ra1 {Raa7 would be deadly.} Rc2+ $2 {Black cannot hold the game after this.} (37... Rb3 $16 {might work better.}) 38. Kd3 $18 Rh2 39. Raa7 Rxh3 $2 (39... Rd8+ $18 40. Ke4 Rg2) 40. Rxg7+ Kh8 41. b6 Rh1 42. Rgc7 Rd8+ 43. Ke4 {[#] b7 would kill now.} Rh4+ 44. Ke5 {[%cal Ob6b7] Threatening mate with b7!} Rh5+ 45. Kf6 {[%cal Ob6b7] White threatens b7! and mate.} ({Weaker is} 45. Kxe6 Rh6+ 46. Ke7 Rg8 $18) 45... Re8 46. e4 {White mates.} Rf8+ 47. Rf7 {[%cal Rf7f8]} Rh6+ 48. Ke7 Rg8 49. b7 e5 50. Ra8 {Weighted Error Value: White=0.06 (flawless) /Black=0.41} 1-0

[Event "Prague Open 2024"]
[Site "Prague"]
[Date "2024.01.07"]
[Round "4.3"]
[White "Xie, Felix"]
[Black "Neuman, Petr"]
[Result "1/2-1/2"]
[ECO "B34"]
[WhiteElo "2249"]
[BlackElo "2398"]
[Annotator "RC"]
[PlyCount "101"]
[EventDate "2024.01.02"]
[EventType "swiss"]
[EventCountry "CZE"]
[SourceTitle "playchess.com"]
[Source "ChessBase"]
[SourceQuality "1"]
[TimeControl "40/5400+30:1800+30"]

1. e4 c5 2. Nf3 Nc6 3. d4 cxd4 4. Nxd4 Nf6 5. Nc3 e5 6. Ndb5 d6 7. Nd5 Nxd5 8. exd5 Nb8 9. a4 Be7 10. Be2 O-O 11. O-O Nd7 12. b4 a6 13. Na3 a5 14. bxa5 Qxa5 15. Nc4 Qc7 16. Be3 f5 17. a5 Nc5 18. f4 exf4 19. Bxf4 Ne4 20. Ra3 Bd7 21. Qb1 Bf6 22. Qb4 Bd4+ 23. Be3 Bxe3+ 24. Rxe3 Rf6 25. Qb6 Rc8 26. Bd3 Nc5 27. Re7 Qd8 28. Rfe1 Kf8 29. Qxd8+ Rxd8 30. Nb6 Be8 31. Rc7 Nxd3 32. cxd3 Rf7 33. Rec1 Bb5 34. Rxf7+ Kxf7 35. Rc7+ Kf6 36. Rxb7 Bxd3 37. Kf2 Re8 38. Nd7+ Kg5 39. Rb3 Re2+ 40. Kf3 Bc4 41. Rc3 Re4 42. Nb6 Be2+ 43. Kf2 Ba6 44. Rc7 g6 45. Ra7 Bd3 46. Rxh7 f4 47. g3 Re2+ 48. Kf3 Re3+ 49. Kf2 Re2+ 50. Kf3 Re3+ 51. Kf2 1/2-1/2